[Event "FIDE World Rapid-ch Open 2018"]
[White "Zvjaginsev, Vadim"]
[Black "Gutenev, Alexander"]
[Site "St. Petersburg"]
[Round "15.63"]
[Annotator "ChessBase"]
[Result "1/2-1/2"]
[Date "2018.12.28"]
[WhiteElo "2642"]
[BlackElo "2456"]
[PlyCount "152"]
[TimeControl "900+10"]

1. e4 {[%emt 0:0:0]} c5 {[%emt 0:0:0]} 2. Nc3 {[%emt 0:0:0]} Nc6 {[%emt 0:0:0]
} 3. Bb5 {[%emt 0:0:0]} Nd4 {[%emt 0:0:0]} 4. Nf3 {[%emt 0:0:0]} e6 {[%emt 0:1:18]} 5. 0-0 {[%emt 0:0:0]} a6 {[%emt 0:0:1]} 6. Bd3 {[%emt 0:0:1]} Nc6 {[%emt 0:0:35]} 7. e5 {[%emt 0:0:55]} d6 {[%emt 0:0:26]
} 8. exd6 {[%emt 0:0:4]} Nf6 {[%emt 0:0:33]} 9. Ne4 {[%emt 0:0:29]} Nxe4 {[%emt 0:0:16]
} 10. Bxe4 {[%emt 0:0:2]} Qxd6 {[%emt 0:0:14]} 11. b3 {[%emt 0:3:24]
} Be7 {[%emt 0:0:18]} 12. Ba3 {[%emt 0:0:11]} Qc7 {[%emt 0:0:0]} 13. d4 {[%emt 0:0:24]} Nxd4 {[%emt 0:3:14]} 14. Nxd4 {[%emt 0:0:10]} cxd4 {[%emt 0:0:2]} 15. Bxe7 {[%emt 0:0:4]} Qxe7 {[%emt 0:0:29]} 16. Qxd4 {[%emt 0:0:2]} 0-0 {[%emt 0:0:51]} 17. Rad1 {[%emt 0:0:24]} e5 {[%emt 0:0:0]} 18. Qd6 Qxd6 {[%emt 0:0:6]} 19. Rxd6 {[%emt 0:1:9]} Rb8 {[%emt 0:0:0]} 20. c4 {[%emt 0:2:13]} b6 {[%emt 0:1:24]} 21. Rfd1 {[%emt 0:0:5]} Be6 {[%emt 0:0:14]} 22. f3 {[%emt 0:0:58]} Rfc8 {[%emt 0:0:34]} 23. Bb7 {[%emt 0:0:9]
} Re8 {[%emt 0:0:30]} 24. Bxa6 {[%emt 0:0:14]} Kf8 {[%emt 0:0:0]} 25. Bb5 {[%emt 0:0:56]} Rec8 {[%emt 0:0:6]} 26. Kf2 {[%emt 0:1:54]} Ke7 {[%emt 0:0:35]} 27. a4 {[%emt 0:0:6]} Rc7 {[%emt 0:0:2]} 28. Ke3 {[%emt 0:0:5]
} h5 {[%emt 0:0:11]} 29. h4 {[%emt 0:0:4]} f6 {[%emt 0:0:8]} 30. Bc6 {[%emt 0:0:43]} Rbc8 {[%emt 0:0:19]} 31. Be4 {[%emt 0:0:6]} f5 {[%emt 0:0:1]
} 32. Bb1 {[%emt 0:0:9]} Rb8 {[%emt 0:0:5]} 33. R1d2 {[%emt 0:0:38]
} g6 {[%emt 0:0:1]} 34. Bc2 {[%emt 0:0:2]} Rd7 {[%emt 0:0:0]} 35. Rxd7+ {[%emt 0:0:17]} Bxd7 {[%emt 0:0:2]} 36. Rd5 {[%emt 0:0:15]} Ke6 {[%emt 0:0:2]} 37. Rd2 {[%emt 0:0:20]} Bc6 {[%emt 0:0:7]} 38. Bd1 {[%emt 0:0:7]
} g5 {[%emt 0:0:36]} 39. hxg5 {[%emt 0:0:9]} f4+ {[%emt 0:0:0]} 40. Kf2 {[%emt 0:0:2]} Rg8 {[%emt 0:0:2]} 41. b4 {[%emt 0:0:33]} Rxg5 {[%emt 0:0:10]} 42. Bb3 {[%emt 0:0:4]} Ke7 {[%emt 0:0:3]} 43. b5 {[%emt 0:0:0]} Be8 {[%emt 0:0:11]} 44. c5 {[%emt 0:0:7]} e4 {[%emt 0:0:13]} 45. Rd4 {[%emt 0:2:47]} e3+ {[%emt 0:0:8]} 46. Ke1 {[%emt 0:0:34]} Rxc5 {[%emt 0:0:12]
} 47. Rxf4 {[%emt 0:0:4]} Rc3 {[%emt 0:0:12]} 48. Bc4 {[%emt 0:0:52]
} Bg6 {[%emt 0:0:33]} 49. Ke2 {[%emt 0:0:6]} Ra3 {[%emt 0:0:0]} 50. Bd5 {[%emt 0:0:17]} Bd3+ {[%emt 0:0:16]} 51. Kxe3 {[%emt 0:0:14]} Bxb5+ {[%emt 0:0:1]} 52. Kf2 {[%emt 0:0:11]} Rxa4 {[%emt 0:0:7]} 53. Rf5 {[%emt 0:0:30]
} h4 {[%emt 0:0:15]} 54. Be4 {[%emt 0:0:9]} Ra2+ {[%emt 0:0:0]} 55. Kg1 {[%emt 0:0:2]} Bd7 {[%emt 0:0:5]} 56. Rh5 {[%emt 0:0:5]} h3 {[%emt 0:0:2]} 57. gxh3 {[%emt 0:0:23]} b5 {[%emt 0:0:7]} 58. h4 {[%emt 0:0:0]} Kf6 {[%emt 0:0:15]} 59. Rd5 {[%emt 0:0:10]} Be8 {[%emt 0:0:19]} 60. Rd6+ {[%emt 0:0:5]} Ke5 {[%emt 0:0:15]} 61. Rd8 {[%emt 0:0:1]} Bf7 {[%emt 0:0:6]
} 62. h5 {[%emt 0:0:2]} Ra6 {[%emt 0:0:13]} 63. Rb8 {[%emt 0:0:0]} Rh6 {[%emt 0:0:16]} 64. Rxb5+ {[%emt 0:0:2]} Kf6 {[%emt 0:0:1]} 65. Rb6+ {[%emt 0:1:2]} Kg7 {[%emt 0:0:1]} 66. Rb7 {[%emt 0:0:9]} Rxh5 {[%emt 0:0:4]
} 67. Kf2 {[%emt 0:0:1]} Re5 {[%emt 0:0:14]} 68. Ke3 {[%emt 0:0:0]} Kf6 {[%emt 0:0:2]} 69. Kd4 {[%emt 0:0:9]} Re7 {[%emt 0:0:2]} 70. Rb6+ {[%emt 0:0:3]} Re6 {[%emt 0:0:1]} 71. Rb5 {[%emt 0:0:6]} Rd6+ {[%emt 0:0:8]
} 72. Ke3 {[%emt 0:0:1]} Bg6 {[%emt 0:0:8]} 73. Bd5 {[%emt 0:0:0]} Bf7 {[%emt 0:0:12]} 74. Bb7 {[%emt 0:0:4]} Be8 {[%emt 0:0:6]} 75. Rb4 {[%emt 0:0:3]} Bc6 {[%emt 0:0:35]} 76. Bc8 {[%emt 0:0:16]} Bd7 {[%emt 0:0:15]
} 1/2-1/2

[Event "FIDE World Rapid-ch Open 2018"]
[White "Huzman, Alexander"]
[Black "Vishnu Prasanna. V"]
[Site "St. Petersburg"]
[Round "15.64"]
[Annotator "ChessBase"]
[Result "0-1"]
[Date "2018.12.28"]
[WhiteElo "2580"]
[BlackElo "2518"]
[PlyCount "68"]
[TimeControl "900+10"]

1. d4 {[%emt 0:0:0]} Nf6 {[%emt 0:0:0]} 2. Nf3 {[%emt 0:0:0]} g6 {[%emt 0:0:0]
} 3. c4 {[%emt 0:0:0]} Bg7 {[%emt 0:0:0]} 4. g3 {[%emt 0:0:0]} 0-0 {[%emt 0:0:0]} 5. Bg2 {[%emt 0:0:0]} d6 {[%emt 0:0:3]} 6. 0-0 {[%emt 0:0:7]
} Nbd7 {[%emt 0:0:3]} 7. Nc3 {[%emt 0:0:25]} e5 {[%emt 0:0:0]} 8. b3 {[%emt 0:0:4]} Re8 {[%emt 0:0:19]} 9. e3 {[%emt 0:0:2]} c6 {[%emt 0:1:50]
} 10. Ba3 {[%emt 0:0:37]} e4 {[%emt 0:0:20]} 11. Nd2 {[%emt 0:0:0]} d5 {[%emt 0:0:2]} 12. Qc1 {[%emt 0:2:49]} a6 {[%emt 0:1:10]} 13. cxd5 {[%emt 0:1:43]} cxd5 {[%emt 0:0:3]} 14. Na4 {[%emt 0:0:0]} b5 {[%emt 0:1:45]
} 15. Nc5 {[%emt 0:0:7]} Nb8 {[%emt 0:0:49]} 16. b4 {[%emt 0:0:0]} h5 {[%emt 0:0:52]} 17. h3 {[%emt 0:1:41]} Ra7 {[%emt 0:0:30]} 18. Qd1 {[%emt 0:0:32]} h4 {[%emt 0:2:26]} 19. g4 {[%emt 0:0:5]} Bh6 {[%emt 0:0:0]} 20. Rc1 {[%emt 0:0:2]} Nh7 {[%emt 0:0:6]} 21. Ncxe4 {[%emt 0:0:16]
} dxe4 {[%emt 0:0:20]} 22. Nxe4 {[%emt 0:0:1]} Bb7 {[%emt 0:0:50]} 23. Nc3 {[%emt 0:0:1]} Bxg2 {[%emt 0:0:41]} 24. Kxg2 {[%emt 0:0:1]} Ng5 {[%emt 0:0:0]} 25. Qd3 {[%emt 0:0:12]} Rc7 {[%emt 0:0:40]} 26. d5 {[%emt 0:0:48]} Rc4 {[%emt 0:0:54]} 27. Ne2 {[%emt 0:0:45]} Nc6 {[%emt 0:0:11]} 28. f4 {[%emt 0:0:22]
} Rce4 {[%emt 0:0:50]} 29. Rc2 {[%emt 0:2:2]} Rxe3 {[%emt 0:0:0]} 30. Qd1 {[%emt 0:0:1]} Qe7 {[%emt 0:1:26]} 31. fxg5 {[%emt 0:0:30]} Qe4+ {[%emt 0:0:2]} 32. Kh2 {[%emt 0:0:2]} Bg7 {[%emt 0:0:2]} 33. Nf4 {[%emt 0:0:37]
} Nd4 {[%emt 0:0:17]} 34. Rcf2 {[%emt 0:0:6]} Rxa3 {[%emt 0:0:0]} 0-1

[Event "FIDE World Rapid-ch Open 2018"]
[White "Yilmaz, Mustafa"]
[Black "Sanal, Vahap"]
[Site "St. Petersburg"]
[Round "15.65"]
[Annotator "ChessBase"]
[Result "1/2-1/2"]
[Date "2018.12.28"]
[WhiteElo "2636"]
[BlackElo "2490"]
[PlyCount "182"]
[TimeControl "900+10"]

1. Nf3 {[%emt 0:0:0]} Nf6 {[%emt 0:0:1]} 2. c4 {[%emt 0:0:0]} e6 {[%emt 0:0:26]
} 3. Nc3 {[%emt 0:0:39]} d5 {[%emt 0:0:5]} 4. e3 {[%emt 0:0:0]} c5 {[%emt 0:0:50]} 5. cxd5 {[%emt 0:0:10]} exd5 {[%emt 0:0:16]} 6. d4 {[%emt 0:0:13]
} Nc6 {[%emt 0:0:5]} 7. Be2 {[%emt 0:0:59]} Be7 {[%emt 0:0:0]} 8. 0-0 {[%emt 0:0:4]} 0-0 {[%emt 0:0:7]} 9. dxc5 {[%emt 0:0:46]} Bxc5 {[%emt 0:0:4]} 10. b3 {[%emt 0:0:3]} Be6 {[%emt 0:0:58]} 11. Bb2 {[%emt 0:0:0]} a6 {[%emt 0:0:8]} 12. Rc1 {[%emt 0:0:2]} Bd6 {[%emt 0:1:17]} 13. Nd4 {[%emt 0:0:22]} Qb8 {[%emt 0:1:26]} 14. g3 {[%emt 0:0:34]} Nxd4 {[%emt 0:0:24]
} 15. Qxd4 {[%emt 0:0:22]} Be5 {[%emt 0:0:2]} 16. Qd3 {[%emt 0:0:46]
} Rd8 {[%emt 0:3:27]} 17. Rfd1 {[%emt 0:0:48]} Ne4 {[%emt 0:0:0]} 18. Na4 {[%emt 0:1:48]} Bxb2 {[%emt 0:1:15]} 19. Nxb2 {[%emt 0:0:3]} Qd6 {[%emt 0:0:5]} 20. Qd4 {[%emt 0:4:57]} Qa3 {[%emt 0:1:20]} 21. Bd3 {[%emt 0:0:2]
} Nf6 {[%emt 0:0:32]} 22. Na4 {[%emt 0:0:49]} Rac8 {[%emt 0:0:0]} 23. Qb2 {[%emt 0:1:43]} Qxb2 {[%emt 0:0:14]} 24. Nxb2 {[%emt 0:0:2]} Bg4 {[%emt 0:0:28]} 25. Re1 {[%emt 0:0:42]} Kf8 {[%emt 0:0:3]} 26. Kg2 {[%emt 0:0:8]
} d4 {[%emt 0:0:20]} 27. Rxc8 {[%emt 0:0:36]} Bxc8 {[%emt 0:0:0]} 28. e4 {[%emt 0:0:14]} b5 {[%emt 0:0:11]} 29. Rc1 {[%emt 0:0:6]} Be6 {[%emt 0:2:4]
} 30. Rc6 {[%emt 0:0:24]} Bc8 {[%emt 0:0:2]} 31. Rc7 {[%emt 0:0:0]} Ne8 {[%emt 0:0:15]} 32. Rc5 {[%emt 0:0:28]} Bb7 {[%emt 0:0:11]} 33. f3 {[%emt 0:0:20]} f6 {[%emt 0:0:9]} 34. Kf2 {[%emt 0:0:30]} Ke7 {[%emt 0:0:0]} 35. a4 {[%emt 0:0:10]} bxa4 {[%emt 0:0:8]} 36. Nxa4 {[%emt 0:0:13]} Rc8 {[%emt 0:0:18]} 37. Ke2 {[%emt 0:0:24]} Kd6 {[%emt 0:0:4]} 38. b4 {[%emt 0:0:9]
} Rc7 {[%emt 0:0:12]} 39. Bc4 {[%emt 0:0:7]} h6 {[%emt 0:0:0]} 40. Kd3 {[%emt 0:0:6]} Bc6 {[%emt 0:0:3]} 41. Nb2 {[%emt 0:0:20]} Ra7 {[%emt 0:0:29]} 42. Kxd4 {[%emt 0:0:39]} Nc7 {[%emt 0:0:1]} 43. f4 {[%emt 0:0:12]
} Bb5 {[%emt 0:0:9]} 44. e5+ {[%emt 0:0:24]} fxe5+ {[%emt 0:0:0]} 45. Rxe5 {[%emt 0:0:1]} Ra8 {[%emt 0:0:10]} 46. h4 {[%emt 0:0:5]} Rd8 {[%emt 0:0:16]} 47. h5 {[%emt 0:0:13]} Kc6+ {[%emt 0:0:0]} 48. Kc3 {[%emt 0:0:33]
} Bxc4 {[%emt 0:0:16]} 49. Rc5+ {[%emt 0:0:7]} Kb7 {[%emt 0:0:0]} 50. Nxc4 {[%emt 0:0:10]} Nb5+ {[%emt 0:0:1]} 51. Kc2 {[%emt 0:0:10]
} Nd4+ {[%emt 0:0:1]} 52. Kb2 {[%emt 0:0:5]} Nc6 {[%emt 0:0:16]} 53. Na5+ {[%emt 0:0:18]} Nxa5 {[%emt 0:0:1]} 54. bxa5 {[%emt 0:0:3]} Rd3 {[%emt 0:0:0]} 55. g4 {[%emt 0:0:2]} Rd4 {[%emt 0:0:20]} 56. Rf5 {[%emt 0:0:4]} Kc6 {[%emt 0:0:1]} 57. Kc3 {[%emt 0:0:4]} Ra4 {[%emt 0:0:2]} 58. Kd3 {[%emt 0:0:5]
} Kd6 {[%emt 0:0:1]} 59. Ke3 {[%emt 0:0:2]} Ra3+ {[%emt 0:0:0]} 60. Ke4 {[%emt 0:0:3]} Ra4+ {[%emt 0:0:5]} 61. Kf3 {[%emt 0:0:2]} Ra3+ {[%emt 0:0:2]} 62. Kf2 {[%emt 0:0:3]} Ke6 {[%emt 0:0:17]} 63. Rc5 {[%emt 0:0:2]
} Kd6 {[%emt 0:0:7]} 64. Re5 {[%emt 0:0:3]} Kd7 {[%emt 0:0:0]} 65. f5 {[%emt 0:0:50]} Ra2+ {[%emt 0:0:9]} 66. Kg3 {[%emt 0:0:2]} Ra3+ {[%emt 0:0:1]} 67. Kh4 {[%emt 0:0:3]} Ra4 {[%emt 0:0:2]} 68. Re6 {[%emt 0:0:5]
} Rxa5 {[%emt 0:0:12]} 69. Rg6 {[%emt 0:0:2]} Ra1 {[%emt 0:0:0]} 70. Rxg7+ {[%emt 0:0:4]} Kd6 {[%emt 0:0:1]} 71. Kg3 {[%emt 0:0:23]} Ra3+ {[%emt 0:0:1]} 72. Kf4 {[%emt 0:0:2]} Ra4+ {[%emt 0:0:1]} 73. Ke3 {[%emt 0:0:14]
} Ra3+ {[%emt 0:0:1]} 74. Kd4 {[%emt 0:0:2]} Ra4+ {[%emt 0:0:0]} 75. Kc3 {[%emt 0:0:1]} Ke5 {[%emt 0:0:16]} 76. Kb3 {[%emt 0:0:34]} Rd4 {[%emt 0:0:6]} 77. Re7+ {[%emt 0:0:8]} Kf4 {[%emt 0:0:5]} 78. Kc3 {[%emt 0:0:24]
} Ra4 {[%emt 0:0:10]} 79. Rg7 {[%emt 0:0:36]} Ke5 {[%emt 0:0:0]} 80. Rg6 {[%emt 0:0:2]} a5 {[%emt 0:0:35]} 81. Re6+ {[%emt 0:0:23]} Kd5 {[%emt 0:0:7]} 82. Rxh6 {[%emt 0:0:18]} Rxg4 {[%emt 0:0:2]} 83. Ra6 {[%emt 0:0:2]
} Ke5 {[%emt 0:0:45]} 84. f6 {[%emt 0:0:19]} Rf4 {[%emt 0:0:0]} 85. h6 {[%emt 0:0:15]} Rxf6 {[%emt 0:0:2]} 86. h7 {[%emt 0:0:11]} Rf3+ {[%emt 0:0:7]} 87. Kc4 {[%emt 0:0:4]} Rh3 {[%emt 0:0:8]} 88. Rxa5+ {[%emt 0:0:5]
} Kf6 {[%emt 0:0:1]} 89. Ra7 {[%emt 0:0:4]} Kg6 {[%emt 0:0:0]} 90. Kd4 {[%emt 0:0:2]} Rxh7 {[%emt 0:0:1]} 91. Rxh7 {[%emt 0:0:2]} Kxh7 1/2-1/2

[Event "FIDE World Rapid-ch Open 2018"]
[White "Teterev, Vitaly"]
[Black "Sychev, Klementy"]
[Site "St. Petersburg"]
[Round "15.66"]
[Annotator "ChessBase"]
[Result "1/2-1/2"]
[Date "2018.12.28"]
[WhiteElo "2486"]
[BlackElo "2537"]
[PlyCount "89"]
[TimeControl "900+10"]

1. Nf3 {[%emt 0:0:0]} Nf6 {[%emt 0:0:0]} 2. g3 {[%emt 0:0:0]} d5 {[%emt 0:0:1]
} 3. Bg2 {[%emt 0:0:0]} g6 {[%emt 0:0:1]} 4. 0-0 {[%emt 0:0:0]} Bg7 {[%emt 0:0:1]} 5. d4 {[%emt 0:0:2]} 0-0 {[%emt 0:0:4]} 6. c4 {[%emt 0:0:2]
} Nc6 {[%emt 0:0:4]} 7. cxd5 {[%emt 0:1:9]} Nxd5 {[%emt 0:0:0]} 8. e4 {[%emt 0:0:34]} Nb6 {[%emt 0:0:1]} 9. d5 {[%emt 0:0:24]} Na5 {[%emt 0:0:2]
} 10. Qe1 {[%emt 0:0:8]} Nac4 {[%emt 0:0:4]} 11. Nc3 {[%emt 0:0:5]
} e6 {[%emt 0:0:1]} 12. b3 {[%emt 0:0:55]} Qf6 {[%emt 0:0:1]
} 13. bxc4 {[%emt 0:0:19]} Qxc3 {[%emt 0:0:2]} 14. Qxc3 {[%emt 0:0:21]} Bxc3 {[%emt 0:0:2]} 15. Rb1 {[%emt 0:0:3]} Nxc4 {[%emt 0:0:2]} 16. Bh6 {[%emt 0:0:31]
} Bg7 {[%emt 0:0:1]} 17. Bxg7 {[%emt 0:0:38]} Kxg7 {[%emt 0:0:0]} 18. Rfc1 {[%emt 0:0:12]} exd5 {[%emt 0:0:27]} 19. exd5 {[%emt 0:0:0]} Nb6 {[%emt 0:0:6]} 20. Nd4 {[%emt 0:1:53]} Rd8 {[%emt 0:0:11]} 21. Rc5 {[%emt 0:0:51]} a6 {[%emt 0:4:36]} 22. h3 {[%emt 0:3:37]} Rd6 {[%emt 0:0:0]} 23. Rbc1 {[%emt 0:1:12]} Rb8 {[%emt 0:2:32]} 24. Rxc7 {[%emt 0:0:43]} Bd7 {[%emt 0:0:2]} 25. R7c5 {[%emt 0:0:48]} Rd8 {[%emt 0:1:11]} 26. Ne2 {[%emt 0:0:54]
} Rc8 {[%emt 0:2:34]} 27. Rxc8 {[%emt 0:0:56]} Bxc8 {[%emt 0:0:0]} 28. Nc3 {[%emt 0:1:3]} f5 {[%emt 0:0:2]} 29. a4 {[%emt 0:0:53]} Bd7 {[%emt 0:0:3]} 30. a5 {[%emt 0:0:24]} Nc8 {[%emt 0:0:59]} 31. Ne2 {[%emt 0:0:54]
} b6 {[%emt 0:0:16]} 32. axb6 {[%emt 0:0:7]} Nxb6 {[%emt 0:0:0]} 33. Rc5 {[%emt 0:0:3]} Kf6 {[%emt 0:0:23]} 34. Nd4 {[%emt 0:0:23]} Na4 {[%emt 0:0:10]} 35. Ra5 {[%emt 0:0:7]} Nc3 {[%emt 0:0:5]} 36. Nc6 {[%emt 0:0:25]
} Bc8 {[%emt 0:0:7]} 37. Rc5 {[%emt 0:0:14]} Na4 {[%emt 0:0:0]} 38. Ra5 {[%emt 0:0:2]} Nc3 {[%emt 0:0:5]} 39. Rc5 {[%emt 0:0:8]} Na4 {[%emt 0:0:9]} 40. Ra5 {[%emt 0:0:13]} Nc3 {[%emt 0:0:5]} 41. Rc5 {[%emt 0:0:20]
} Na4 {[%emt 0:0:2]} 42. Rc4 {[%emt 0:0:11]} Nb6 {[%emt 0:0:0]} 43. Rc5 {[%emt 0:0:4]} Na4 {[%emt 0:0:14]} 44. Ra5 {[%emt 0:0:15]} Nc3 {[%emt 0:0:1]} 45. Rc5 {[%emt 0:0:11]} 1/2-1/2

[Event "FIDE World Rapid-ch Open 2018"]
[White "Popov, Ivan"]
[Black "Kazhgaleyev, Murtas"]
[Site "St. Petersburg"]
[Round "15.67"]
[Annotator "ChessBase"]
[Result "1-0"]
[Date "2018.12.28"]
[WhiteElo "2592"]
[BlackElo "2587"]
[PlyCount "77"]
[TimeControl "900+10"]

1. e4 {[%emt 0:0:0]} e5 {[%emt 0:0:0]} 2. Nf3 {[%emt 0:0:0]} d6 {[%emt 0:0:0]} 3. d4 {[%emt 0:0:0]} exd4 {[%emt 0:0:0]} 4. Nxd4 {[%emt 0:0:1]} Nf6 {[%emt 0:0:0]} 5. Nc3 {[%emt 0:0:1]} Be7 {[%emt 0:0:0]} 6. Bf4 {[%emt 0:0:10]
} 0-0 {[%emt 0:0:3]} 7. Qd2 {[%emt 0:0:4]} c6 {[%emt 0:0:3]
} 8. 0-0-0 {[%emt 0:0:18]} b5 {[%emt 0:0:1]} 9. f3 {[%emt 0:1:53]} b4 {[%emt 0:0:13]
} 10. Nce2 {[%emt 0:0:5]} c5 {[%emt 0:0:28]} 11. Nf5 {[%emt 0:0:0]} Bxf5 {[%emt 0:0:1]} 12. exf5 {[%emt 0:0:1]} Nc6 {[%emt 0:0:8]} 13. g4 {[%emt 0:0:39]} Qa5 {[%emt 0:0:3]} 14. Kb1 {[%emt 0:0:5]} c4 {[%emt 0:0:4]
} 15. Nd4 {[%emt 0:1:2]} Nxd4 {[%emt 0:0:3]} 16. Qxd4 {[%emt 0:0:1]
} d5 {[%emt 0:0:2]} 17. g5 {[%emt 0:2:43]} Bc5 {[%emt 0:0:25]
} 18. Qd2 {[%emt 0:0:1]} Nh5 {[%emt 0:0:10]} 19. Be5 {[%emt 0:0:37]} Rad8 {[%emt 0:0:18]
} 20. f6 {[%emt 0:1:36]} Rfe8 {[%emt 0:1:8]} 21. f4 {[%emt 0:0:0]} Qb6 {[%emt 0:0:49]} 22. Re1 {[%emt 0:1:51]} b3 {[%emt 0:2:46]} 23. axb3 {[%emt 0:0:41]} cxb3 {[%emt 0:0:16]} 24. Bd3 {[%emt 0:0:4]} g6 {[%emt 0:2:58]
} 25. cxb3 {[%emt 0:1:27]} Bb4 {[%emt 0:0:22]} 26. Bc3 {[%emt 0:0:1]
} Bxc3 {[%emt 0:0:3]} 27. Qxc3 {[%emt 0:0:3]} Nxf4 {[%emt 0:0:0]} 28. Rxe8+ {[%emt 0:1:56]} Rxe8 {[%emt 0:0:3]} 29. Re1 {[%emt 0:0:0]} Ne6 {[%emt 0:0:48]} 30. h4 {[%emt 0:0:38]} Rb8 {[%emt 0:0:26]} 31. Bc2 {[%emt 0:1:2]} Qf2 {[%emt 0:0:55]} 32. h5 {[%emt 0:1:27]} d4 {[%emt 0:0:0]} 33. Qa5 {[%emt 0:0:1]} d3 {[%emt 0:0:48]} 34. Bxd3 {[%emt 0:0:1]} Rxb3 {[%emt 0:0:9]} 35. Qd8+ {[%emt 0:0:51]} Nf8 {[%emt 0:0:1]} 36. Re2 {[%emt 0:0:4]
} Qg3 {[%emt 0:0:52]} 37. Bc4 {[%emt 0:0:17]} Qg1+ {[%emt 0:0:0]} 38. Ka2 {[%emt 0:0:12]} Rb7 {[%emt 0:0:12]} 39. Re7 {[%emt 0:0:28]} 1-0

[Event "FIDE World Rapid-ch Open 2018"]
[White "Anikonov, Dmitry"]
[Black "Reshetnikov, Alexey"]
[Site "St. Petersburg"]
[Round "15.68"]
[Annotator "ChessBase"]
[Result "1/2-1/2"]
[Date "2018.12.28"]
[WhiteElo "2371"]
[BlackElo "2492"]
[PlyCount "73"]
[TimeControl "900+10"]

1. d4 {[%emt 0:0:0]} d5 {[%emt 0:0:0]} 2. c4 {[%emt 0:0:0]} c6 {[%emt 0:0:0]} 3. cxd5 {[%emt 0:0:0]} cxd5 {[%emt 0:0:4]} 4. Bg5 {[%emt 0:0:0]} Nc6 {[%emt 0:1:14]} 5. Nc3 {[%emt 0:0:0]} Nf6 {[%emt 0:0:33]} 6. Bxf6 {[%emt 0:0:0]
} gxf6 {[%emt 0:0:1]} 7. e3 {[%emt 0:0:1]} e6 {[%emt 0:0:44]
} 8. Bd3 {[%emt 0:0:2]} Qb6 {[%emt 0:0:5]} 9. Qd2 {[%emt 0:0:36]} Bd7 {[%emt 0:0:21]
} 10. Nge2 {[%emt 0:0:4]} Na5 {[%emt 0:0:29]} 11. 0-0 {[%emt 0:1:23]
} f5 {[%emt 0:0:21]} 12. Nf4 {[%emt 0:0:45]} Rc8 {[%emt 0:0:0]} 13. Rfc1 {[%emt 0:2:29]} Bd6 {[%emt 0:0:47]} 14. Nh5 {[%emt 0:0:14]} Be7 {[%emt 0:2:23]} 15. b3 {[%emt 0:0:30]} Qd8 {[%emt 0:1:31]} 16. Na4 {[%emt 0:1:29]
} Rxc1+ {[%emt 0:1:42]} 17. Rxc1 {[%emt 0:0:2]} b6 {[%emt 0:0:0]} 18. Nc3 {[%emt 0:0:27]} Ba3 {[%emt 0:1:18]} 19. Rc2 {[%emt 0:0:33]} Qg5 {[%emt 0:0:51]} 20. Nf4 {[%emt 0:0:3]} Bd6 {[%emt 0:0:17]} 21. Nb5 {[%emt 0:0:17]
} Bxb5 {[%emt 0:1:12]} 22. Bxb5+ {[%emt 0:0:2]} Ke7 {[%emt 0:0:0]} 23. b4 {[%emt 0:0:4]} Nb7 {[%emt 0:0:10]} 24. Ba6 {[%emt 0:0:43]} Rb8 {[%emt 0:0:7]} 25. a3 {[%emt 0:0:11]} Kf8 {[%emt 0:0:23]} 26. Qc1 {[%emt 0:1:27]
} Nd8 {[%emt 0:1:3]} 27. Nd3 {[%emt 0:1:15]} Qe7 {[%emt 0:0:0]} 28. g3 {[%emt 0:0:39]} f6 {[%emt 0:0:9]} 29. Nf4 {[%emt 0:0:10]} Kg7 {[%emt 0:0:54]
} 30. Kg2 {[%emt 0:1:0]} Kf8 {[%emt 0:0:0]} 31. h4 {[%emt 0:0:0]} Kg7 {[%emt 0:0:2]} 32. h5 {[%emt 0:0:18]} Nf7 {[%emt 0:0:22]} 33. Rc6 {[%emt 0:0:58]} Rd8 {[%emt 0:0:15]} 34. Nd3 {[%emt 0:0:45]} Ng5 {[%emt 0:0:35]
} 35. Rc8 {[%emt 0:0:33]} Rxc8 {[%emt 0:0:30]} 36. Bxc8 {[%emt 0:0:2]
} Nf7 {[%emt 0:0:10]} 37. Qc6 {[%emt 0:0:29]} 1/2-1/2

[Event "FIDE World Rapid-ch Open 2018"]
[White "Popov, Valerij"]
[Black "Yeritsyan, Aram"]
[Site "St. Petersburg"]
[Round "15.69"]
[Annotator "ChessBase"]
[Result "1-0"]
[Date "2018.12.28"]
[WhiteElo "2532"]
[BlackElo "2372"]
[PlyCount "139"]
[TimeControl "900+10"]

1. c4 {[%emt 0:0:0]} Nf6 {[%emt 0:0:0]} 2. Nf3 {[%emt 0:0:0]} e6 {[%emt 0:0:0]
} 3. Nc3 {[%emt 0:0:5]} Bb4 {[%emt 0:0:18]} 4. g4 {[%emt 0:0:0]} Nxg4 {[%emt 0:1:38]} 5. Rg1 {[%emt 0:0:2]} Nh6 {[%emt 0:1:1]} 6. Rxg7 {[%emt 0:0:2]} Nf5 {[%emt 0:0:1]} 7. Rg1 {[%emt 0:0:16]} b6 {[%emt 0:0:0]} 8. e4 {[%emt 0:0:56]} Nh4 {[%emt 0:0:2]} 9. a3 {[%emt 0:1:19]} Be7 {[%emt 0:0:14]
} 10. Nxh4 {[%emt 0:0:58]} Bxh4 {[%emt 0:0:1]} 11. d4 {[%emt 0:0:4]
} Bb7 {[%emt 0:0:40]} 12. Be3 {[%emt 0:0:18]} d6 {[%emt 0:0:0]} 13. Qh5 {[%emt 0:0:58]} Nd7 {[%emt 0:2:4]} 14. e5 {[%emt 0:0:52]} Nf8 {[%emt 0:3:9]} 15. 0-0-0 {[%emt 0:0:46]} Qe7 {[%emt 0:0:41]} 16. c5 {[%emt 0:1:9]
} d5 {[%emt 0:0:50]} 17. Nb5 {[%emt 0:2:36]} Ng6 {[%emt 0:0:0]} 18. f4 {[%emt 0:0:55]} a6 {[%emt 0:0:26]} 19. Nc3 {[%emt 0:0:7]} 0-0-0 20. b4 {[%emt 0:0:12]} b5 {[%emt 0:0:34]} 21. f5 {[%emt 0:0:46]} exf5 {[%emt 0:0:1]
} 22. Bh3 {[%emt 0:0:12]} Kb8 {[%emt 0:0:1]} 23. Bxf5 {[%emt 0:0:2]
} Bc8 {[%emt 0:0:22]} 24. Bxc8 {[%emt 0:0:41]} Kxc8 {[%emt 0:0:0]} 25. Bg5 {[%emt 0:0:14]} Bxg5+ {[%emt 0:0:3]} 26. Qxg5 {[%emt 0:0:0]} Qxg5+ {[%emt 0:0:28]} 27. Rxg5 {[%emt 0:0:1]} f6 {[%emt 0:0:28]} 28. exf6 {[%emt 0:0:3]} c6 {[%emt 0:0:0]} 29. Rf1 {[%emt 0:0:30]} Rhf8 {[%emt 0:0:2]
} 30. Ne2 {[%emt 0:0:17]} Rde8 {[%emt 0:0:44]} 31. Ng3 {[%emt 0:0:6]
} Re6 {[%emt 0:0:5]} 32. f7 {[%emt 0:0:14]} Kc7 {[%emt 0:0:0]} 33. Rh5 {[%emt 0:0:2]} Rh8 {[%emt 0:0:43]} 34. Kd2 {[%emt 0:0:24]} Kd7 {[%emt 0:0:2]} 35. a4 {[%emt 0:0:16]} Ke7 {[%emt 0:0:45]} 36. Nf5+ {[%emt 0:0:56]
} Kxf7 {[%emt 0:0:1]} 37. Nd6+ {[%emt 0:0:2]} Kg8 {[%emt 0:0:0]} 38. Rhf5 {[%emt 0:1:25]} Kg7 {[%emt 0:0:51]} 39. Rf7+ {[%emt 0:0:3]
} Kh6 {[%emt 0:0:0]} 40. Ra7 {[%emt 0:0:2]} Rg8 {[%emt 0:0:19]} 41. Rxa6 {[%emt 0:0:12]
} bxa4 {[%emt 0:0:7]} 42. Rxc6 {[%emt 0:0:6]} Kh5 {[%emt 0:0:0]} 43. Rf5+ {[%emt 0:0:43]} Kg4 {[%emt 0:0:0]} 44. Rf2 {[%emt 0:0:34]} Ra8 {[%emt 0:0:49]} 45. b5 {[%emt 0:0:2]} a3 {[%emt 0:0:13]} 46. Ra6 {[%emt 0:0:2]
} Rxa6 {[%emt 0:0:4]} 47. bxa6 {[%emt 0:0:1]} Re7 {[%emt 0:0:0]} 48. Nb5 {[%emt 0:0:17]} a2 {[%emt 0:0:6]} 49. Rf1 {[%emt 0:0:1]} Nh4 {[%emt 0:0:28]} 50. a7 {[%emt 0:0:11]} Nf3+ {[%emt 0:0:3]} 51. Kc3 {[%emt 0:0:5]
} Re3+ {[%emt 0:0:9]} 52. Kc2 {[%emt 0:2:26]} Re2+ {[%emt 0:0:0]} 53. Kd3 {[%emt 0:0:0]} Ne1+ {[%emt 0:0:13]} 54. Rxe1 {[%emt 0:0:38]
} Rxe1 {[%emt 0:0:3]} 55. a8=Q {[%emt 0:0:1]} a1=Q {[%emt 0:0:5]} 56. Qg8+ {[%emt 0:0:14]} Kf4 {[%emt 0:0:27]} 57. Qf7+ {[%emt 0:0:13]} Kg4 {[%emt 0:0:8]
} 58. Qg7+ {[%emt 0:0:0]} Kf4 {[%emt 0:0:6]} 59. Qf6+ {[%emt 0:0:30]
} Kg4 {[%emt 0:0:2]} 60. Nc3 {[%emt 0:0:22]} Re3+ {[%emt 0:0:0]} 61. Kxe3 {[%emt 0:0:10]} Qxc3+ {[%emt 0:0:1]} 62. Kf2 {[%emt 0:0:1]} Qd2+ {[%emt 0:0:6]} 63. Kf1 {[%emt 0:0:6]} Qd3+ {[%emt 0:0:21]} 64. Kg2 {[%emt 0:0:16]
} Qe4+ {[%emt 0:0:1]} 65. Kg1 {[%emt 0:0:1]} Kh3 {[%emt 0:0:0]} 66. Qf1+ {[%emt 0:0:11]} Kh4 {[%emt 0:0:2]} 67. Qf6+ {[%emt 0:0:3]} Kh3 {[%emt 0:0:17]} 68. Qh6+ {[%emt 0:0:12]} Kg4 {[%emt 0:0:3]} 69. Qg7+ {[%emt 0:0:1]
} Kh3 {[%emt 0:0:0]} 70. Qg3# {[%emt 0:0:2] Kh4} 1-0